lending/lending_fUSD_20251121
["ID","MTS","AMOUNT","RATE_DAILY","PERIOD"]
[394565379,1763716246900,-404.78164,0.00017,2]
[394565380,1763716246909,-404.78164,0.00017,2]
[394565381,1763716246918,-151.0,0.00017,2]
[394565382,1763716246927,-151.0,0.00017,2]
[394565383,1763716246936,-151.0,0.00017,2]
[394565384,1763716246945,-261.58162,0.00017,2]
[394565385,1763716246956,-151.0,0.00017,2]
[394565386,1763716246965,-151.0,0.00017,2]
[394565387,1763716246974,-151.0,0.00017,2]
[394565388,1763716246983,-151.0,0.00017,2]
[394565389,1763716246993,-151.0,0.00017,2]
[394565390,1763716247002,-1000.0,0.00017,2]
[394565391,1763716247011,-161.6568,0.00017,2]
[394565392,1763716247020,-566.821076,0.00017,2]
[394565393,1763716247030,-566.821076,0.00017,2]
[394565394,1763716247039,-566.821076,0.00017,2]
[394565395,1763716247048,-957.486529,0.00017,2]
[394565396,1763716247058,-957.486529,0.00017,2]
[394565397,1763716247067,-566.821076,0.00017,2]
[394565398,1763716247077,-566.821076,0.00017,2]
[394565399,1763716247086,-566.821076,0.00017,2]
[394565400,1763716247096,-566.821076,0.00017,2]
[394565401,1763716247105,-566.821074,0.00017,2]
[394565402,1763716247115,-957.486529,0.00017,2]
[394565403,1763716247124,-957.486529,0.00017,2]
[394565404,1763716247134,-435.308615,0.00017,2]
[394565405,1763716247143,-435.308615,0.00017,2]
[394565406,1763716247152,-957.486529,0.00017,2]
[394565407,1763716247161,-957.486529,0.00017,2]
[394565408,1763716247170,-435.308615,0.00017,2]
[394565409,1763716247180,-435.308615,0.00017,2]
[394565410,1763716247201,-957.486529,0.00017,2]
[394565411,1763716247218,-957.486521,0.00017,2]
[394565412,1763716247240,-435.308615,0.00017,2]
[394565413,1763716247263,-435.308615,0.00017,2]
[394565414,1763716247278,-435.308615,0.00017,2]
[394565415,1763716247300,-435.308614,0.00017,2]
[394565416,1763716247320,-151.0,0.00017,2]
[394565417,1763716247342,-151.0,0.00017,2]
[394565418,1763716247360,-151.0,0.00017,2]
[394565419,1763716247380,-151.0,0.00017,2]
[394565420,1763716247397,-179.668458,0.00017,2]
[394565421,1763716247411,-200.0,0.00017,2]
[394565422,1763716247430,-1246.0,0.00017,2]
[394565423,1763716247442,-1246.0,0.00017,2]
[394565424,1763716247463,-1246.0,0.00017,2]
[394565425,1763716247477,-1246.0,0.00017,2]
[394565426,1763716247496,-1246.0,0.00017,2]
[394565427,1763716247512,-1246.0,0.00017,2]
[394565428,1763716247528,-1246.0,0.00017,2]
[394565429,1763716247543,-761.785818,0.00017,2]
[394565430,1763716247559,-761.785818,0.00017,2]
[394565431,1763716247574,-168.886823,0.00017,2]
[394565432,1763716247589,-168.886823,0.00017,2]
[394565433,1763716247607,-151.0,0.00017,2]
[394565434,1763716247622,-761.785818,0.00017,2]
[394565435,1763716247636,-761.785818,0.00017,2]
[394565436,1763716247651,-452.018918,0.00017,2]
[394565437,1763716247666,-168.886823,0.00017,2]
[394565438,1763716247681,-1246.0,0.00017,2]
[394565439,1763716247696,-168.886823,0.00017,2]
[394565440,1763716247712,-452.018918,0.00017,2]
[394565441,1763716247727,-1246.0,0.00017,2]
[394565442,1763716247741,-761.785818,0.00017,2]
[394565443,1763716247756,-1246.0,0.00017,2]
[394565444,1763716247772,-761.785818,0.00017,2]
[394565445,1763716247787,-168.886823,0.00017,2]
[394565446,1763716247802,-168.886823,0.00017,2]
[394565447,1763716247817,-452.018918,0.00017,2]
[394565448,1763716247832,-452.018918,0.00017,2]
[394565449,1763716247847,-761.785818,0.00017,2]
[394565450,1763716247862,-242.910237,0.00017,2]
[394565451,1763716247876,-761.785826,0.00017,2]
[394565452,1763716247892,-242.910237,0.00017,2]
[394565453,1763716247921,-168.886823,0.00017,2]
[394565454,1763716247946,-168.886823,0.00017,2]
[394565455,1763716247970,-452.018918,0.00017,2]
[394565456,1763716247991,-452.018918,0.00017,2]
[394565457,1763716248011,-242.910237,0.00017,2]
[394565458,1763716248030,-242.910237,0.00017,2]
[394565459,1763716248048,-452.018918,0.00017,2]
[394565460,1763716248066,-452.018915,0.00017,2]
[394565461,1763716248083,-242.910237,0.00017,2]
[394565462,1763716248098,-242.910237,0.00017,2]
[394565463,1763716248114,-242.910237,0.00017,2]
[394565464,1763716248131,-242.910237,0.00017,2]
[394565465,1763716248148,-151.0,0.00017,2]
[394565466,1763716248164,-151.0,0.00017,2]
[394565467,1763716248181,-193.0,0.00017003,2]
[394565468,1763716248197,-551.8691437,0.00017018,2]
[394565469,1763716248215,-193.0,0.00017042,2]
[394565470,1763716248231,-193.0,0.00017045,2]
[394565471,1763716248248,-500.0,0.00017049,2]
[394565472,1763716248263,-300.0,0.00017049,2]
[394565473,1763716248279,-300.0,0.00017049,2]
[394565474,1763716248296,-300.0,0.00017049,2]
[394565475,1763716248312,-300.0,0.00017049,2]
[394565476,1763716248328,-38936.04768885,0.0001705,2]
[394565477,1763716248345,-151.0,0.0001705,2]
[394565478,1763716248362,-156.837698,0.0001705,2]
[394565479,1763716248377,-346.464491,0.0001705,2]
[394565480,1763716248393,-346.464491,0.0001705,2]
[394565481,1763716248409,-346.464491,0.0001705,2]
[394565482,1763716248425,-346.464491,0.0001705,2]
[394565483,1763716248442,-151.125198,0.0001705,2]
[394565484,1763716248458,-151.0,0.0001705,2]
[394565485,1763716248473,-246.66567,0.0001705,2]
[394565486,1763716248488,-151.0,0.0001705,2]
[394565487,1763716248504,-151.0,0.0001705,2]
[394565488,1763716248520,-246.905828,0.0001705,2]
[394565489,1763716248535,-215.943626,0.0001705,2]
[394565490,1763716248552,-151.0,0.0001705,2]
[394565491,1763716248568,-156.593524,0.0001705,2]
[394565492,1763716248583,-162.924534,0.0001705,2]
[394565493,1763716248600,-162.924534,0.0001705,2]
[394565494,1763716248616,-155.546512,0.0001705,2]
[394565495,1763716248631,-162.924534,0.0001705,2]
[394565496,1763716248647,-162.924534,0.0001705,2]
[394565497,1763716248663,-163.77623,0.0001705,2]
[394565498,1763716248678,-151.0,0.0001705,2]
[394565499,1763716248693,-151.0,0.0001705,2]
[394565500,1763716248709,-180.955964,0.0001705,2]
[394565501,1763716248725,-172.023602,0.0001705,2]
[394565502,1763716248740,-151.0,0.0001705,2]
[394565503,1763716248755,-172.023602,0.0001705,2]
[394565504,1763716248771,-151.0,0.0001705,2]
[394565505,1763716248785,-172.023602,0.0001705,2]
[394565506,1763716248800,-172.023602,0.0001705,2]
[394565507,1763716248814,-151.0,0.0001705,2]
[394565508,1763716248830,-151.0,0.0001705,2]
[394565509,1763716248840,-151.0,0.0001705,2]
[394565510,1763716248850,-151.0,0.0001705,2]
[394565511,1763716249109,-151.0,0.0001705,2]
[394565512,1763716249130,-283.743095,0.0001705,2]
[394565513,1763716249139,-1511.72322329,0.00017067,2]
[394565514,1763716249149,-1263.19,0.00017067,2]
[394565515,1763716249159,-152.70507547,0.00017068,2]
[394565516,1763716249169,-150.0,0.00017068,2]
[394565517,1763716249179,-710.0,0.00017068,2]
[394565518,1763716249189,-341.88825471,0.00017071,2]
[394565519,1763716249203,-500.0,0.00017073,2]
[394565520,1763716249213,-500.95899855,0.00017073,2]
[394565521,1763716249222,-501.28867276,0.00017073,2]
[394565522,1763716249231,-500.0,0.00017073,2]
[394565523,1763716249241,-501.04348296,0.00017073,2]
[394565524,1763716249251,-501.26074061,0.00017073,2]
[394565525,1763716249264,-300.0,0.00017073,2]
[394565526,1763716249274,-649.91,0.00017073,2]
[394565527,1763716249285,-150.0,0.00017074,2]
[394565528,1763716249294,-150.0,0.00017074,2]
[394565529,1763716249303,-500.0,0.00017074,2]
[394565530,1763716249312,-500.0,0.00017074,2]
[394565531,1763716249322,-500.0,0.00017074,2]
[394565532,1763716249332,-500.0,0.00017074,2]
[394565533,1763716249341,-500.0,0.00017074,2]
[394565534,1763716249351,-500.0,0.00017074,2]
[394565535,1763716249360,-237.616439,0.00017074,2]
[394565536,1763716249369,-151.0,0.00017074,2]
[394565537,1763716249379,-151.0,0.00017074,2]
[394565538,1763716249389,-151.0,0.00017074,2]
[394565539,1763716249399,-277.123505,0.00017074,2]
[394565540,1763716249410,-193.0,0.00017091,2]
[394565541,1763716249420,-300.0,0.00017109,2]
[394565542,1763716249430,-567.45585131,0.0001711,2]
[394565543,1763716249440,-6369.07,0.00017115,2]
[394565544,1763716249451,-301.317,0.00017115,2]
[394565545,1763716249461,-1185.400786,0.00017115,2]
[394565546,1763716249472,-1185.400786,0.00017115,2]
[394565547,1763716249481,-1185.400786,0.00017115,2]
[394565548,1763716249492,-1185.400786,0.00017115,2]
[394565549,1763716249503,-404.78164,0.00017115,2]
[394565550,1763716249513,-404.78164,0.00017115,2]
[394565551,1763716249524,-404.78164,0.00017115,2]
[394565552,1763716249534,-404.78164,0.00017115,2]
[394565553,1763716249544,-151.0,0.00017115,2]
[394565554,1763716249554,-500.0,0.00017121,2]
[394565555,1763716249564,-500.0,0.00017121,2]
[394565556,1763716249574,-280.46189862,0.00017121,2]
[394565557,1763716249584,-1000.0,0.00017121,2]
[394565558,1763716249594,-429.05792664,0.00017121,2]
[394565559,1763716249604,-331.35694762,0.00017132,2]
[394565560,1763716249614,-236.0,0.00017159,2]
[394565561,1763716249626,-200.0,0.0001717,2]
[394565562,1763716249637,-1256.0,0.00017177,2]
[394565563,1763716249647,-783.0,0.00017177,2]
[394565564,1763716249659,-701.05,0.00017178,2]
[394565565,1763716249668,-701.05,0.00017178,2]
[394565566,1763716249678,-701.05,0.00017178,2]
[394565567,1763716249687,-937.44,0.00017178,2]
[394565568,1763716249696,-701.05,0.00017178,2]
[394565569,1763716249706,-701.05,0.00017178,2]
[394565570,1763716249716,-701.05,0.00017178,2]
[394565571,1763716249726,-701.05,0.00017178,2]
[394565572,1763716249735,-701.05,0.00017178,2]
[394565573,1763716249745,-701.05,0.00017178,2]
[394565574,1763716249755,-1402.1,0.00017178,2]
[394565575,1763716249764,-1402.1,0.00017178,2]
[394565576,1763716249773,-1402.1,0.00017178,2]
[394565577,1763716249783,-701.05,0.00017178,2]
[394565578,1763716249792,-701.05,0.00017178,2]
[394565579,1763716249801,-701.05,0.00017178,2]
[394565580,1763716249811,-701.05,0.00017178,2]
[394565581,1763716249821,-701.05,0.00017178,2]
[394565582,1763716249831,-701.05,0.00017178,2]
[394565583,1763716249841,-701.05,0.00017178,2]
[394565584,1763716249851,-341.88825471,0.00017209,2]
[394565585,1763716249860,-3399.8099,0.0001721,2]
[394565586,1763716249870,-200.0,0.00017211,2]
[394565587,1763716249879,-293.69938487,0.00017211,2]
[394565588,1763716249889,-500.0,0.00017211,2]
[394565589,1763716249898,-500.0,0.00017211,2]
[394565590,1763716249907,-500.0,0.00017211,2]
[394565591,1763716249916,-500.0,0.00017211,2]
[394565592,1763716249925,-500.0,0.00017211,2]
[394565593,1763716249934,-500.0,0.00017211,2]
[394565594,1763716249943,-1511.72322329,0.00017233,2]
[394565595,1763716249952,-1096.47,0.00017273,2]
[394565596,1763716249961,-1192.0,0.00017276,2]
[394565597,1763716249971,-908.0,0.00017276,2]
[394565598,1763716249980,-2659.0,0.00017276,2]
[394565599,1763716249990,-6496.0,0.00017276,2]
[394565600,1763716249999,-1606.0,0.00017276,2]
[394565601,1763716250008,-561.0,0.00017276,2]
[394565602,1763716250019,-710.0,0.00017303,2]
[394565603,1763716250030,-166.66,0.0001732,2]
[394565604,1763716250040,-1000.0,0.00017321,2]
[394565605,1763716250052,-308.18826031,0.00017321,2]
[394565606,1763716250063,-500.0,0.00017321,2]
[394565607,1763716250072,-1000.0,0.00017321,2]
[394565608,1763716250081,-700.0,0.00017321,2]
[394565609,1763716250091,-312.5306204,0.00017321,2]
[394565610,1763716250100,-1000.0,0.00017321,2]
[394565611,1763716250109,-1000.0,0.00017321,2]
[394565612,1763716250119,-462.90538481,0.00017321,2]
[394565613,1763716250128,-500.0,0.00017321,2]
[394565614,1763716250137,-481.70785925,0.00017321,2]
[394565615,1763716250146,-331.35694762,0.00017324,2]
[394565616,1763716250155,-200.0,0.00017342,2]
[394565617,1763716250165,-341.88825471,0.00017348,2]
[394565618,1763716250174,-500.0,0.00017348,2]
[394565619,1763716250183,-500.0,0.00017348,2]
[394565620,1763716250192,-500.0,0.00017348,2]
[394565621,1763716250201,-500.0,0.00017348,2]
[394565622,1763716250212,-500.0,0.00017348,2]
[394565623,1763716250222,-500.0,0.00017348,2]
[394565624,1763716250231,-151.0,0.00017351,2]
[394565625,1763716250241,-151.0,0.00017351,2]
[394565626,1763716250255,-151.0,0.00017356,2]
[394565627,1763716250264,-172.023602,0.00017356,2]
[394565628,1763716250274,-172.023602,0.00017356,2]
[394565629,1763716250283,-151.0,0.00017356,2]
[394565630,1763716250293,-172.023602,0.00017356,2]
[394565631,1763716250303,-172.023602,0.00017356,2]
[394565632,1763716250312,-151.0,0.00017356,2]
[394565633,1763716250323,-151.0,0.00017356,2]
[394565634,1763716250332,-151.0,0.00017356,2]
[394565635,1763716250342,-151.0,0.00017356,2]
[394565636,1763716250351,-151.0,0.00017356,2]
[394565637,1763716250361,-150.0,0.00017356,2]
[394565638,1763716250370,-150.0,0.00017356,2]
[394565639,1763716250379,-150.0,0.00017356,2]
[394565640,1763716250389,-283.616,0.00017356,2]
[394565641,1763716250398,-162.0,0.00017356,2]
[394565642,1763716250407,-150.816,0.00017356,2]
[394565643,1763716250417,-575.0,0.00017356,2]
[394565644,1763716250427,-609.0,0.00017356,2]
[394565645,1763716250436,-3435.0,0.00017356,2]
[394565646,1763716250445,-1319.0,0.00017356,2]
[394565647,1763716250455,-822.0,0.00017356,2]
[394565648,1763716250463,-1601.0,0.00017356,2]
[394565649,1763716250473,-151.000005,0.00017384,2]
[394565650,1763716250482,-162.924534,0.00017384,2]
[394565651,1763716250491,-162.924534,0.00017384,2]
[394565652,1763716250501,-162.924534,0.00017384,2]
[394565653,1763716250510,-162.924534,0.00017384,2]
[394565654,1763716250519,-151.0,0.00017384,2]
[394565655,1763716250528,-151.0,0.00017384,2]
[394565656,1763716250537,-1511.72322329,0.000174,2]
[394565657,1763716250546,-1815.0,0.000174,2]
[394565658,1763716250555,-1040.91636878,0.000174,2]
[394565659,1763716250565,-405.23947948,0.000174,2]
[394565660,1763716250574,-223.69378529,0.000174,3]
[394565661,1763716250583,-3399.80989,0.0001745,2]
[394565662,1763716250592,-151.0,0.00017464,2]
[394565663,1763716250601,-246.95,0.00017484,2]
[394565664,1763716250610,-500.0,0.00017485,2]
[394565665,1763716250619,-500.0,0.00017485,2]
[394565666,1763716250628,-500.0,0.00017485,2]
[394565667,1763716250637,-500.0,0.00017485,2]
[394565668,1763716250647,-500.0,0.00017485,2]
[394565669,1763716250657,-283.9474683,0.00017485,2]
[394565670,1763716250666,-341.88825471,0.00017486,2]
[394565671,1763716250675,-500.0,0.000175,6]
[394565672,1763716250685,-331.35694762,0.00017516,2]
[394565673,1763716250694,-346.02,0.00017519,2]
[394565674,1763716250705,-151.0,0.00017521,2]
[394565675,1763716250718,-346.464491,0.00017521,2]
[394565676,1763716250728,-346.464491,0.00017521,2]
[394565677,1763716250738,-346.464491,0.00017521,2]
[394565678,1763716250749,-346.464491,0.00017521,2]
[394565679,1763716250760,-151.0,0.00017521,2]
[394565680,1763716250770,-151.0,0.00017521,2]
[394565681,1763716250781,-1096.47,0.00017547,2]
[394565682,1763716250791,-701.05,0.00017562,2]
[394565683,1763716250801,-1420.08,0.00017562,2]
[394565684,1763716250810,-1511.72322329,0.00017567,2]
[394565685,1763716250820,-500.0,0.000176,6]
[394565686,1763716250830,-213.07,0.00017611,2]
[394565687,1763716250839,-1000.0,0.00017621,2]
[394565688,1763716250851,-500.0,0.00017622,2]
[394565689,1763716250861,-500.0,0.00017622,2]
[394565690,1763716250872,-500.0,0.00017622,2]
[394565691,1763716250884,-500.0,0.00017622,2]
[394565692,1763716250894,-500.0,0.00017622,2]
[394565693,1763716250903,-163.00731315,0.00017622,2]
[394565694,1763716250914,-341.88825471,0.00017624,2]
[394565695,1763716250924,-168.64,0.00017642,2]
[394565696,1763716250933,-935.0,0.00017656,2]
[394565697,1763716250943,-440.38709243,0.00017668,2]
[394565698,1763716250953,-202.0,0.00017676,2]
[394565699,1763716250962,-166.67,0.00017687,2]
[394565700,1763716250971,-500.0,0.000177,6]
[394565701,1763716250979,-3399.8099,0.000177,2]
[394565702,1763716250989,-331.35694762,0.00017708,2]
[394565703,1763716250997,-1511.72322329,0.00017733,2]
[394565704,1763716251007,-1600.0,0.00017737,2]
[394565705,1763716251017,-300.0,0.00017751,2]
[394565706,1763716251027,-300.0,0.00017751,2]
[394565707,1763716251037,-300.0,0.00017751,2]
[394565708,1763716251047,-250.0,0.00017751,2]
[394565709,1763716251057,-960.71319109,0.00017751,4]
[394565710,1763716251067,-300.0,0.00017751,2]
[394565711,1763716251076,-300.0,0.00017751,2]
[394565712,1763716251086,-250.0,0.00017751,2]
[394565713,1763716251095,-300.0,0.00017751,2]
[394565714,1763716251105,-193.0,0.00017751,2]
[394565715,1763716251114,-1216.86095147,0.00017758,2]
[394565716,1763716251124,-364.67246063,0.00017759,2]
[394565717,1763716251134,-500.0,0.00017759,2]
[394565718,1763716251143,-500.0,0.00017759,2]
[394565719,1763716251153,-233.82120881,0.00017759,2]
[394565720,1763716251162,-500.0,0.00017759,2]
[394565721,1763716251172,-341.88825471,0.00017762,2]
[394565722,1763716251181,-300.0,0.00017767,2]
[394565723,1763716251191,-426.56612961,0.00017768,3]
[394565724,1763716251201,-25000.0,0.00017768,3]
[394565725,1763716251211,-152.44884,0.00017768,2]
[394565726,1763716251220,-258.910321,0.00017768,2]
[394565727,1763716251229,-151.0,0.00017768,2]
[394565728,1763716251239,-300.0,0.00017776,2]
[394565729,1763716251249,-500.0,0.00017776,2]
[394565730,1763716251262,-500.0,0.00017776,2]
[394565731,1763716251272,-500.0,0.00017776,2]
[394565732,1763716251281,-443.15926361,0.00017776,2]
[394565733,1763716251291,-649.91,0.00017776,2]
[394565734,1763716251301,-649.91,0.00017776,2]
[394565735,1763716251311,-649.91,0.00017776,2]
[394565736,1763716251320,-649.91,0.00017776,2]
[394565737,1763716251330,-649.98985602,0.00017776,2]
[394565738,1763716251341,-25000.0,0.00017777,3]
[394565739,1763716251350,-162.924534,0.00017777,2]
[394565740,1763716251360,-162.924534,0.00017777,2]
[394565741,1763716251370,-162.924534,0.00017777,2]
[394565742,1763716251380,-162.924537,0.00017777,2]
[394565743,1763716251389,-151.0,0.00017777,2]
[394565744,1763716251399,-172.023602,0.00017777,2]
[394565745,1763716251408,-171.835801,0.00017777,2]
[394565746,1763716251418,-172.023602,0.00017777,2]
[394565747,1763716251427,-151.0,0.00017777,2]
[394565748,1763716251436,-172.023602,0.00017777,2]
[394565749,1763716251445,-172.023602,0.00017777,2]
[394565750,1763716251455,-151.0,0.00017777,2]
[394565751,1763716251464,-151.0,0.00017777,2]
[394565752,1763716251474,-151.0,0.00017777,2]
[394565753,1763716251483,-151.0,0.00017777,2]
[394565754,1763716251492,-151.0,0.00017777,2]
[394565755,1763716251502,-1185.400786,0.00017777,2]
[394565756,1763716251511,-1185.400786,0.00017777,2]
[394565757,1763716251521,-1185.400786,0.00017777,2]
[394565758,1763716251530,-1185.40078,0.00017777,2]
[394565759,1763716251539,-404.78164,0.00017777,2]
[394565760,1763716251548,-404.78164,0.00017777,2]
[394565761,1763716251558,-404.78164,0.00017777,2]
[394565762,1763716251567,-404.781631,0.00017777,2]
[394565763,1763716251576,-151.0,0.00017777,2]
[394565764,1763716251586,-300.0,0.00017785,2]
[394565765,1763716251595,-151.0,0.00017785,2]
[394565766,1763716251605,-199.655434,0.00017785,2]
[394565767,1763716251614,-151.0,0.00017785,2]
[394565768,1763716251624,-346.464491,0.00017785,2]
[394565769,1763716251634,-346.464491,0.00017785,2]
[394565770,1763716251643,-346.464491,0.00017785,2]
[394565771,1763716251652,-346.464491,0.00017785,2]
[394565772,1763716251662,-151.0,0.00017785,2]
[394565773,1763716251672,-163.655681,0.00017785,2]
[394565774,1763716251681,-151.0,0.00017785,2]
[394565775,1763716251690,-1263.19,0.00017785,2]
[394565776,1763716251700,-25000.0,0.00017786,3]
[394565777,1763716251709,-300.0,0.00017791,2]
[394565778,1763716251718,-300.0,0.00017793,2]
[394565779,1763716251728,-25000.0,0.00017794,3]
[394565780,1763716251737,-300.0,0.00017797,2]
[394565781,1763716251747,-500.0,0.000178,6]
[394565782,1763716251757,-300.0,0.00017802,2]
[394565783,1763716251767,-151.0,0.00017803,2]
[394565784,1763716251777,-25000.0,0.00017803,3]
[394565785,1763716251787,-500.0,0.00017808,2]
[394565786,1763716251796,-25000.0,0.00017812,3]
[394565787,1763716251806,-151.0,0.00017812,2]
[394565788,1763716251815,-25000.0,0.00017821,3]
[394565789,1763716251824,-1096.47,0.00017821,2]
[394565790,1763716251834,-300.0,0.00017827,2]
[394565791,1763716251844,-25000.0,0.0001783,3]
[394565792,1763716251853,-151.0,0.0001783,2]
[394565793,1763716251863,-151.0,0.0001783,2]
[394565794,1763716251872,-346.464491,0.0001783,2]
[394565795,1763716251881,-346.464491,0.0001783,2]
[394565796,1763716251890,-346.464491,0.0001783,2]
[394565797,1763716251899,-346.46449,0.0001783,2]
[394565798,1763716251909,-151.0,0.0001783,2]
[394565799,1763716251918,-25000.0,0.00017838,3]
[394565800,1763716251927,-151.0,0.00017847,2]
[394565801,1763716251936,-25000.0,0.00017847,3]
[394565802,1763716251945,-1263.19,0.00017855,2]
[394565803,1763716251955,-1263.19,0.00017855,2]
[394565804,1763716251964,-1263.19,0.00017855,2]
[394565805,1763716251973,-1263.19,0.00017855,2]
[394565806,1763716251982,-1263.23269413,0.00017855,2]
[394565807,1763716251991,-25000.0,0.00017856,3]
[394565808,1763716252000,-25000.0,0.00017865,3]
[394565809,1763716252010,-1500.0,0.00017868,2]
[394565810,1763716252020,-1500.0,0.00017868,2]
[394565811,1763716252195,-1500.0,0.00017868,2]
[394565812,1763716252210,-1500.0,0.00017868,2]
[394565813,1763716252220,-1000.0,0.00017869,2]
[394565814,1763716252230,-300.0,0.00017873,2]
[394565815,1763716252239,-25000.0,0.00017874,3]
[394565816,1763716252253,-151.0,0.00017874,2]
[394565817,1763716252263,-25000.0,0.00017882,3]
[394565818,1763716252273,-300.0,0.00017887,2]
[394565819,1763716252282,-151.0,0.0001789,2]
[394565820,1763716252294,-151.0,0.0001789,2]
[394565821,1763716252303,-151.0,0.0001789,2]
[394565822,1763716252313,-151.0,0.0001789,2]
[394565823,1763716252323,-151.0,0.0001789,2]
[394565824,1763716252332,-151.0,0.0001789,2]
[394565825,1763716252342,-151.0,0.0001789,2]
[394565826,1763716252352,-153.0,0.0001789,2]
[394565827,1763716252363,-151.0,0.0001789,2]
[394565828,1763716252372,-153.0,0.0001789,2]
[394565829,1763716252382,-151.0,0.0001789,2]
[394565830,1763716252391,-153.0,0.0001789,2]
[394565831,1763716252402,-151.0,0.0001789,2]
[394565832,1763716252411,-153.0,0.0001789,2]
[394565833,1763716252420,-151.0,0.0001789,2]
[394565834,1763716252430,-157.84372152,0.0001789,2]
[394565835,1763716252439,-151.0,0.0001789,2]
[394565836,1763716252448,-151.0,0.0001789,2]
[394565837,1763716252458,-154.98088878,0.0001789,2]
[394565838,1763716252467,-25000.0,0.00017891,3]
[394565839,1763716252476,-500.0,0.00017896,2]
[394565840,1763716252486,-500.0,0.00017896,2]
[394565841,1763716252495,-500.0,0.00017896,2]
[394565842,1763716252505,-300.0,0.00017899,2]
[394565843,1763716252515,-301.55735151,0.00017899,2]
[394565844,1763716252525,-246.95,0.00017899,2]
[394565845,1763716252534,-426.56612961,0.000179,3]
[394565846,1763716252543,-25000.0,0.000179,3]
[394565847,1763716252553,-25000.0,0.000179,3]
[394565848,1763716252562,-25000.0,0.000179,3]
[394565849,1763716252572,-426.56612961,0.000179,3]
[394565850,1763716252581,-1511.72322329,0.000179,2]
[394565851,1763716252591,-341.88825471,0.000179,2]
[394565852,1763716252601,-1425.0,0.000179,6]
[394565853,1763716252610,-331.35694762,0.000179,2]
[394565854,1763716252619,-1040.91636878,0.000179,2]
[394565855,1763716252629,-405.23947948,0.000179,2]
[394565856,1763716252638,-500.0,0.000179,2]
[394565857,1763716252647,-500.0,0.000179,2]
[394565858,1763716252656,-500.0,0.000179,2]
[394565859,1763716252666,-500.0,0.000179,2]
[394565860,1763716252675,-500.0,0.000179,2]
[394565861,1763716252684,-500.0,0.000179,2]
[394565862,1763716252693,-500.0,0.000179,2]
[394565863,1763716252702,-500.0,0.000179,2]
[394565864,1763716252711,-500.0,0.000179,2]
[394565865,1763716252720,-500.0,0.000179,2]
[394565866,1763716252730,-500.0,0.000179,2]
[394565867,1763716252739,-500.0,0.000179,2]
[394565868,1763716252748,-500.0,0.000179,2]
[394565869,1763716252757,-500.0,0.000179,2]
[394565870,1763716252766,-500.0,0.000179,2]
[394565871,1763716252775,-500.0,0.000179,2]
[394565872,1763716252785,-180.52953997,0.000179,2]
[394565873,1763716252794,-300.0,0.00017924,2]
[394565874,1763716252803,-500.0,0.00017945,2]
[394565875,1763716252814,-3399.80989,0.0001795,2]
[394565876,1763716252824,-1313.40557611,0.0001797,2]
[394565877,1763716252834,-1000.0,0.0001797,2]
[394565878,1763716252843,-300.0,0.00017974,2]